[Event "16th EWICC 2015"]
[Site "Kutaisi"]
[Date "2015.06.02"]
[Round "7"]
[White "Arakhamia-Grant, Ketevan"]
[Black "Zhukova, Natalia"]
[Result "1/2-1/2"]
[ECO "C70"]
[WhiteElo "2393"]
[BlackElo "2456"]
[Annotator "Robot 11"]
[PlyCount "116"]
[EventDate "2015.??.??"]
[EventCountry "GEO"]
[TimeControl "900+10"]

1. e4 {[%emt 0:00:02]} e5 {[%emt 0:00:01]} 2. Nf3 {[%emt 0:00:03]} Nc6 {[%emt
0:00:03]} 3. Bb5 {[%emt 0:00:08]} a6 {[%emt 0:00:01]} 4. Ba4 {[%emt 0:00:01]}
Nge7 {[%emt 0:00:03]} 5. c3 {[%emt 0:00:09]} g6 {[%emt 0:00:02]} 6. O-O {[%emt
0:00:13]} Bg7 {[%emt 0:00:01]} 7. d4 {[%emt 0:00:02]} exd4 {[%emt 0:00:02]} 8.
cxd4 {[%emt 0:00:01]} b5 {[%emt 0:00:01]} 9. Bb3 {[%emt 0:00:09]} O-O {[%emt 0:
00:04]} 10. Nc3 {[%emt 0:00:09]} d6 {[%emt 0:00:02]} 11. h3 {[%emt 0:00:03]}
Na5 {[%emt 0:00:07]} 12. Bc2 {[%emt 0:00:01]} c5 {[%emt 0:00:20]} 13. Bg5 {
[%emt 0:00:36]} h6 {[%emt 0:00:23]} 14. Bh4 {[%emt 0:00:09]} cxd4 {[%emt 0:00:
14]} 15. Nxd4 {[%emt 0:01:29]} Bb7 {[%emt 0:00:02]} 16. Nd5 {[%emt 0:03:09]}
Bxd5 {[%emt 0:00:03]} 17. exd5 {[%emt 0:00:02]} Rc8 {[%emt 0:00:01]} 18. Bb3 {
[%emt 0:05:22]} g5 {[%emt 0:00:52]} 19. Bg3 {[%emt 0:00:07]} Nc4 {[%emt 0:00:
01]} 20. Re1 {[%emt 0:02:14]} Nxb2 {[%emt 0:00:29]} 21. Qd2 {[%emt 0:00:21]}
Nc4 {[%emt 0:00:03]} 22. Qd3 {[%emt 0:00:14]} Re8 {[%emt 0:01:13]} 23. Rac1 {
[%emt 0:00:13]} Qb6 {[%emt 0:01:11]} 24. Nf5 {[%emt 0:00:16]} Nxf5 {[%emt 0:00:
06]} 25. Qxf5 {[%emt 0:00:02]} Qd4 {[%emt 0:01:32]} 26. Red1 {[%emt 0:00:19]}
Qc5 {[%emt 0:00:50]} 27. h4 {[%emt 0:00:12]} gxh4 {[%emt 0:00:50]} 28. Bf4 {
[%emt 0:00:02]} Re2 {[%emt 0:00:32]} 29. Be3 {[%emt 0:00:10]} Rxe3 {[%emt 0:00:
15]} 30. fxe3 {[%emt 0:00:01]} Qxe3+ {[%emt 0:00:03]} 31. Kh1 {[%emt 0:00:04]}
Re8 {[%emt 0:01:06]} 32. Rf1 {[%emt 0:00:02]} Qe7 {[%emt 0:00:23]} 33. Bxc4 {
[%emt 0:00:14]} bxc4 {[%emt 0:00:04]} 34. Rxc4 {[%emt 0:00:02]} Rf8 {[%emt 0:
00:38]} 35. Rg4 {[%emt 0:00:26]} Kh8 {[%emt 0:00:03]} 36. Rgf4 {[%emt 0:00:40]}
Kg8 {[%emt 0:01:59]} 37. Qh5 {[%emt 0:00:25]} Qg5 {[%emt 0:00:14]} 38. Qf3 {
[%emt 0:00:17]} Qg6 {[%emt 0:02:15]} 39. Rg4 {[%emt 0:00:07]} Qh7 {[%emt 0:00:
35]} 40. Rxh4 {[%emt 0:00:43]} Qg6 {[%emt 0:00:15]} 41. Qf5 {[%emt 0:01:12]}
Qxf5 {[%emt 0:00:25]} 42. Rxf5 {[%emt 0:00:02]} Rc8 {[%emt 0:00:01]} 43. Ra4 {
[%emt 0:00:19]} Rc1+ {[%emt 0:00:25]} 44. Kh2 {[%emt 0:00:01]} Be5+ {[%emt 0:
00:00]} 45. Kh3 {[%emt 0:00:17]} Kg7 {[%emt 0:00:46]} 46. Rxa6 {[%emt 0:00:42]}
f6 {[%emt 0:01:26]} 47. Rf3 {[%emt 0:00:39]} Rh1+ {[%emt 0:00:35]} 48. Kg4 {
[%emt 0:00:01]} Kg6 {[%emt 0:00:00]} 49. Rb3 {[%emt 0:00:17]} Rf1 {[%emt 0:00:
21]} 50. g3 {[%emt 0:00:04]} h5+ {[%emt 0:00:35]} 51. Kh3 {[%emt 0:00:02]} Rf2
{[%emt 0:00:01]} 52. Ra4 {[%emt 0:00:23]} f5 {[%emt 0:00:13]} 53. Ra8 {[%emt 0:
00:29]} h4 {[%emt 0:00:43]} 54. Rg8+ {[%emt 0:00:11]} Kf7 {[%emt 0:00:13]} 55.
Rg5 {[%emt 0:00:12]} hxg3 {[%emt 0:00:08]} 56. Rbxg3 {[%emt 0:00:06]} Bxg3 {
[%emt 0:00:06]} 57. Kxg3 {[%emt 0:00:03]} Rxa2 {[%emt 0:00:28]} 58. Rxf5+ {
[%emt 0:00:02]} Ke7 {[%emt 0:00:02]} 1/2-1/2

[Event "16th EWICC 2015"]
[Site "Kutaisi"]
[Date "2015.06.02"]
[Round "7"]
[White "Charkhalashvili, Inga"]
[Black "Nikoladze, Sopio"]
[Result "1-0"]
[ECO "A40"]
[WhiteElo "2318"]
[BlackElo "2155"]
[Annotator "Robot 11"]
[PlyCount "167"]
[EventDate "2015.??.??"]
[EventCountry "GEO"]
[TimeControl "900+10"]

1. d4 {[%emt 0:00:01]} b5 {[%emt 0:00:03]} 2. Nf3 {[%emt 0:00:09]} Bb7 {[%emt
0:00:02]} 3. e3 {[%emt 0:00:08]} a6 {[%emt 0:00:01]} 4. c4 {[%emt 0:00:02]} b4
{[%emt 0:00:23]} 5. Bd2 {[%emt 0:00:25]} e6 {[%emt 0:00:05]} 6. a3 {[%emt 0:00:
08]} bxa3 {[%emt 0:00:14]} 7. Nxa3 {[%emt 0:00:04]} c5 {[%emt 0:00:03]} 8. Bc3
{[%emt 0:00:07]} Nf6 {[%emt 0:00:08]} 9. Be2 {[%emt 0:00:20]} Ne4 {[%emt 0:00:
28]} 10. O-O {[%emt 0:00:46]} Nxc3 {[%emt 0:00:31]} 11. bxc3 {[%emt 0:00:02]}
Qc7 {[%emt 0:01:27]} 12. d5 {[%emt 0:00:52]} Be7 {[%emt 0:00:41]} 13. e4 {
[%emt 0:00:20]} e5 {[%emt 0:01:24]} 14. Qb3 {[%emt 0:00:25]} d6 {[%emt 0:00:48]
} 15. Nc2 {[%emt 0:02:27]} O-O {[%emt 0:00:16]} 16. Ne3 {[%emt 0:00:17]} g6 {
[%emt 0:00:45]} 17. Bd3 {[%emt 0:00:53]} Bc8 {[%emt 0:00:07]} 18. Qc2 {[%emt 0:
00:10]} Nd7 {[%emt 0:01:43]} 19. Nd2 {[%emt 0:00:03]} a5 {[%emt 0:00:46]} 20.
Nb1 {[%emt 0:00:27]} Nb6 {[%emt 0:01:53]} 21. Na3 {[%emt 0:00:01]} Bd7 {[%emt
0:00:44]} 22. Rfb1 {[%emt 0:00:22]} Ra6 {[%emt 0:00:23]} 23. Nb5 {[%emt 0:00:
30]} Qc8 {[%emt 0:00:35]} 24. Qe2 {[%emt 0:01:22]} f5 {[%emt 0:00:52]} 25. exf5
{[%emt 0:00:46]} gxf5 {[%emt 0:00:02]} 26. f4 {[%emt 0:00:24]} e4 {[%emt 0:02:
27]} 27. Bc2 {[%emt 0:00:00]} Rf7 {[%emt 0:00:09]} 28. Ra3 {[%emt 0:00:52]} Na8
{[%emt 0:00:35]} 29. Rba1 {[%emt 0:00:21]} Bd8 {[%emt 0:00:04]} 30. Ba4 {[%emt
0:00:20]} Qb8 {[%emt 0:00:21]} 31. Rb3 {[%emt 0:00:40]} Qc8 {[%emt 0:00:03]}
32. Rab1 {[%emt 0:00:07]} Rf6 {[%emt 0:00:17]} 33. Qh5 {[%emt 0:00:49]} Nb6 {
[%emt 0:00:07]} 34. Ra3 {[%emt 0:00:52]} Nxa4 {[%emt 0:00:06]} 35. Rxa4 {[%emt
0:00:01]} Kg7 {[%emt 0:00:09]} 36. Qe2 {[%emt 0:00:17]} Rg6 {[%emt 0:00:09]}
37. Kh1 {[%emt 0:00:12]} Ra8 {[%emt 0:00:39]} 38. Rg1 {[%emt 0:00:53]} Ra6 {
[%emt 0:00:24]} 39. Qc2 {[%emt 0:00:14]} h5 {[%emt 0:00:20]} 40. Qe2 {[%emt 0:
00:21]} Kh6 {[%emt 0:00:01]} 41. Ra2 {[%emt 0:00:43]} Bf6 {[%emt 0:00:04]} 42.
Rga1 {[%emt 0:00:11]} Bd8 {[%emt 0:00:03]} 43. Rb1 {[%emt 0:00:48]} Be8 {[%emt
0:00:09]} 44. Rab2 {[%emt 0:00:29]} Qd7 {[%emt 0:00:18]} 45. Na3 {[%emt 0:00:
10]} Ra8 {[%emt 0:00:14]} 46. Rb7 {[%emt 0:00:03]} Qc8 {[%emt 0:00:29]} 47. Qb2
{[%emt 0:01:11]} Rg7 {[%emt 0:00:04]} 48. Rxg7 {[%emt 0:00:07]} Kxg7 {[%emt 0:
00:04]} 49. Qb7+ {[%emt 0:00:06]} Qxb7 {[%emt 0:00:06]} 50. Rxb7+ {[%emt 0:00:
03]} Kf6 {[%emt 0:00:07]} 51. Kg1 {[%emt 0:00:38]} a4 {[%emt 0:00:06]} 52. Kf2
{[%emt 0:00:17]} Ba5 {[%emt 0:00:02]} 53. Nd1 {[%emt 0:00:21]} Ra6 {[%emt 0:00:
08]} 54. Ke3 {[%emt 0:00:22]} Rb6 {[%emt 0:00:06]} 55. Rxb6 {[%emt 0:00:02]}
Bxb6 {[%emt 0:00:01]} 56. Kd2 {[%emt 0:00:21]} Ba5 {[%emt 0:00:05]} 57. Ne3 {
[%emt 0:00:11]} h4 {[%emt 0:00:51]} 58. Kc2 {[%emt 0:00:14]} Bd7 {[%emt 0:00:
05]} 59. Kb2 {[%emt 0:00:25]} Ke7 {[%emt 0:01:00]} 60. Nb1 {[%emt 0:00:14]} Kd8
{[%emt 0:00:19]} 61. Na3 {[%emt 0:00:20]} Kc7 {[%emt 0:00:01]} 62. Nb1 {[%emt
0:00:02]} Kb7 {[%emt 0:00:05]} 63. Na3 {[%emt 0:00:15]} Bd8 {[%emt 0:00:08]}
64. Nb5 {[%emt 0:00:07]} Be7 {[%emt 0:00:06]} 65. Na3 {[%emt 0:00:20]} Ka6 {
[%emt 0:00:02]} 66. Nb1 {[%emt 0:00:05]} Ka5 {[%emt 0:00:02]} 67. Nd2 {[%emt 0:
00:07]} Bf6 {[%emt 0:00:01]} 68. Nb1 {[%emt 0:00:03]} Bd4 {[%emt 0:00:13]} 69.
cxd4 {[%emt 0:00:10]} cxd4 {[%emt 0:00:01]} 70. Nc2 {[%emt 0:00:01]} d3 {[%emt
0:00:06]} 71. Ne3 {[%emt 0:00:04]} Kb4 {[%emt 0:00:02]} 72. Na3 {[%emt 0:00:14]
} Bc8 {[%emt 0:00:06]} 73. Nb5 {[%emt 0:00:09]} Kc5 {[%emt 0:00:11]} 74. Kc3 {
[%emt 0:00:01]} Bd7 {[%emt 0:00:06]} 75. Nd4 {[%emt 0:00:11]} a3 {[%emt 0:00:
06]} 76. Nb3+ {[%emt 0:00:03]} Kb6 {[%emt 0:00:02]} 77. Kb4 {[%emt 0:00:12]} a2
{[%emt 0:00:03]} 78. Ka3 {[%emt 0:00:06]} Ka6 {[%emt 0:00:38]} 79. Kxa2 {[%emt
0:00:01]} Kb6 {[%emt 0:00:00]} 80. Kb2 {[%emt 0:00:01]} Kc7 {[%emt 0:00:02]}
81. Kc3 {[%emt 0:00:01]} Kd8 {[%emt 0:00:02]} 82. Nd4 {[%emt 0:00:03]} Ke7 {
[%emt 0:00:01]} 83. Ndxf5+ {[%emt 0:00:03]} Kf6 {[%emt 0:00:01]} 84. Nxd6 {
[%emt 0:00:02]} 1-0

[Event "16th EWICC 2015"]
[Site "Kutaisi"]
[Date "2015.06.02"]
[Round "7"]
[White "Choladze, Mariam"]
[Black "Zaksaite, Salomeja"]
[Result "1-0"]
[ECO "C91"]
[WhiteElo "1989"]
[BlackElo "2203"]
[Annotator "Robot 11"]
[PlyCount "73"]
[EventDate "2015.??.??"]
[EventCountry "GEO"]
[TimeControl "900+10"]

1. e4 {[%emt 0:00:02]} e5 {[%emt 0:00:21]} 2. Nf3 {[%emt 0:00:01]} Nc6 {[%emt
0:00:00]} 3. Bb5 {[%emt 0:00:01]} a6 {[%emt 0:00:01]} 4. Ba4 {[%emt 0:00:01]}
Nf6 {[%emt 0:00:02]} 5. O-O {[%emt 0:00:11]} Be7 {[%emt 0:00:05]} 6. Re1 {
[%emt 0:00:03]} b5 {[%emt 0:00:03]} 7. Bb3 {[%emt 0:00:02]} d6 {[%emt 0:00:02]}
8. c3 {[%emt 0:00:04]} O-O {[%emt 0:00:13]} 9. d4 {[%emt 0:00:02]} Bg4 {[%emt
0:00:05]} 10. Be3 {[%emt 0:00:17]} exd4 {[%emt 0:00:11]} 11. cxd4 {[%emt 0:00:
05]} Na5 {[%emt 0:00:03]} 12. Bc2 {[%emt 0:00:02]} Nc4 {[%emt 0:00:03]} 13. Bc1
{[%emt 0:00:22]} c5 {[%emt 0:00:48]} 14. b3 {[%emt 0:00:33]} Nb6 {[%emt 0:00:
10]} 15. Bb2 {[%emt 0:00:46]} c4 {[%emt 0:01:23]} 16. Nbd2 {[%emt 0:00:13]} d5
{[%emt 0:02:28]} 17. e5 {[%emt 0:00:41]} Nfd7 {[%emt 0:00:02]} 18. Nf1 {[%emt
0:00:08]} Rc8 {[%emt 0:01:20]} 19. Ne3 {[%emt 0:00:07]} Be6 {[%emt 0:00:01]}
20. Nf5 {[%emt 0:01:52]} Bb4 {[%emt 0:00:32]} 21. Re2 {[%emt 0:00:01]} Re8 {
[%emt 0:00:35]} 22. Bc1 {[%emt 0:00:45]} Bf8 {[%emt 0:00:58]} 23. Ng5 {[%emt 0:
00:40]} Rc6 {[%emt 0:00:21]} 24. Nxh7 {[%emt 0:01:35]} cxb3 {[%emt 0:01:53]}
25. Bd3 {[%emt 0:01:34]} g6 {[%emt 0:03:13]} 26. Bg5 {[%emt 0:01:15]} Qc8 {
[%emt 0:00:13]} 27. Nxf8 {[%emt 0:00:40]} Nxf8 {[%emt 0:01:37]} 28. Ne7+ {
[%emt 0:00:57]} Rxe7 {[%emt 0:00:01]} 29. Bxe7 {[%emt 0:00:06]} bxa2 {[%emt 0:
00:13]} 30. Rexa2 {[%emt 0:00:02]} Na4 {[%emt 0:00:06]} 31. Qd2 {[%emt 0:00:13]
} Bf5 {[%emt 0:00:56]} 32. Ra3 {[%emt 0:00:42]} Nh7 {[%emt 0:01:03]} 33. Bxf5 {
[%emt 0:00:18]} Qxf5 {[%emt 0:00:00]} 34. Rh3 {[%emt 0:00:14]} Rc2 {[%emt 0:00:
04]} 35. Qe1 {[%emt 0:01:29]} Ng5 {[%emt 0:00:32]} 36. Bxg5 {[%emt 0:00:19]}
Qxg5 {[%emt 0:00:01]} 37. e6 {[%emt 0:00:10]} 1-0

[Event "16th EWICC 2015"]
[Site "Kutaisi"]
[Date "2015.06.02"]
[Round "7"]
[White "Gaponenko, Inna"]
[Black "Gunina, Valentina"]
[Result "0-1"]
[ECO "B14"]
[WhiteElo "2391"]
[BlackElo "2535"]
[Annotator "Robot 11"]
[PlyCount "62"]
[EventDate "2015.??.??"]
[EventCountry "GEO"]
[TimeControl "900+10"]

1. e4 {[%emt 0:00:01]} c6 {[%emt 0:00:04]} 2. d4 {[%emt 0:00:01]} d5 {[%emt 0:
00:02]} 3. exd5 {[%emt 0:00:02]} cxd5 {[%emt 0:00:02]} 4. c4 {[%emt 0:00:01]}
Nf6 {[%emt 0:00:01]} 5. Nc3 {[%emt 0:00:01]} g6 {[%emt 0:00:01]} 6. Qb3 {[%emt
0:00:01]} Bg7 {[%emt 0:00:02]} 7. cxd5 {[%emt 0:00:01]} O-O {[%emt 0:00:02]} 8.
Nge2 {[%emt 0:00:02]} b5 {[%emt 0:00:38]} 9. g3 {[%emt 0:00:20]} Na6 {[%emt 0:
00:16]} 10. Bg2 {[%emt 0:00:06]} b4 {[%emt 0:00:29]} 11. Nd1 {[%emt 0:00:01]}
e6 {[%emt 0:00:36]} 12. Bg5 {[%emt 0:02:25]} Bb7 {[%emt 0:00:48]} 13. Ne3 {
[%emt 0:00:18]} exd5 {[%emt 0:02:27]} 14. O-O {[%emt 0:00:47]} Qb6 {[%emt 0:01:
08]} 15. Bxf6 {[%emt 0:02:19]} Qxf6 {[%emt 0:00:37]} 16. Nxd5 {[%emt 0:03:46]}
Qd6 {[%emt 0:00:04]} 17. Nf6+ {[%emt 0:01:55]} Bxf6 {[%emt 0:00:02]} 18. Bxb7 {
[%emt 0:00:02]} Rae8 {[%emt 0:00:09]} 19. Rfe1 {[%emt 0:03:36]} Nc7 {[%emt 0:
00:13]} 20. a3 {[%emt 0:00:11]} Rb8 {[%emt 0:00:12]} 21. Bf3 {[%emt 0:00:39]}
Ne6 {[%emt 0:00:02]} 22. axb4 {[%emt 0:00:01]} Rxb4 {[%emt 0:00:10]} 23. Qd5 {
[%emt 0:01:41]} Qb8 {[%emt 0:00:02]} 24. Bg4 {[%emt 0:00:26]} Nxd4 {[%emt 0:00:
38]} 25. Ra6 {[%emt 0:00:08]} Bg7 {[%emt 0:00:42]} 26. Nxd4 {[%emt 0:00:03]}
Rxd4 {[%emt 0:00:02]} 27. Qf3 {[%emt 0:00:08]} Qb4 {[%emt 0:00:01]} 28. Rea1 {
[%emt 0:00:21]} Rxg4 {[%emt 0:00:04]} 29. Rxa7 {[%emt 0:00:03]} Rg5 {[%emt 0:
00:16]} 30. Ra8 {[%emt 0:00:13]} Rf5 {[%emt 0:00:09]} 31. Rxf8+ {[%emt 0:00:03]
} Bxf8 {[%emt 0:00:03]} 0-1

[Event "16th EWICC 2015"]
[Site "Kutaisi"]
[Date "2015.06.02"]
[Round "7"]
[White "Gaprindashvili, Nona"]
[Black "Khomeriki, Ketevan"]
[Result "1-0"]
[ECO "A42"]
[WhiteElo "2302"]
[BlackElo "1861"]
[Annotator "Robot 11"]
[PlyCount "107"]
[EventDate "2015.??.??"]
[EventCountry "GEO"]
[TimeControl "900+10"]

1. d4 {[%emt 0:00:02]} g6 {[%emt 0:00:02]} 2. c4 {[%emt 0:00:03]} d6 {[%emt 0:
00:10]} 3. Nc3 {[%emt 0:00:17]} Bg7 {[%emt 0:00:05]} 4. e4 {[%emt 0:00:03]} f5
{[%emt 0:00:09]} 5. exf5 {[%emt 0:00:29]} Bxf5 {[%emt 0:00:05]} 6. Nge2 {[%emt
0:00:24]} Nf6 {[%emt 0:00:12]} 7. Ng3 {[%emt 0:00:03]} Bd7 {[%emt 0:01:02]} 8.
Be2 {[%emt 0:00:25]} O-O {[%emt 0:00:15]} 9. O-O {[%emt 0:00:02]} Nc6 {[%emt 0:
01:59]} 10. d5 {[%emt 0:00:04]} Ne5 {[%emt 0:00:05]} 11. f4 {[%emt 0:00:18]}
Nf7 {[%emt 0:00:30]} 12. f5 {[%emt 0:00:03]} gxf5 {[%emt 0:00:17]} 13. Nxf5 {
[%emt 0:00:02]} Bxf5 {[%emt 0:00:06]} 14. Rxf5 {[%emt 0:00:02]} c6 {[%emt 0:02:
04]} 15. Be3 {[%emt 0:00:26]} cxd5 {[%emt 0:00:31]} 16. cxd5 {[%emt 0:00:03]}
Nh6 {[%emt 0:00:58]} 17. Rg5 {[%emt 0:02:16]} Qd7 {[%emt 0:02:53]} 18. Bd4 {
[%emt 0:08:13]} Kh8 {[%emt 0:01:08]} 19. Qd3 {[%emt 0:00:12]} Nf7 {[%emt 0:00:
14]} 20. Rg3 {[%emt 0:01:06]} Ne5 {[%emt 0:00:35]} 21. Qe3 {[%emt 0:01:00]} Nf7
{[%emt 0:01:56]} 22. Rf1 {[%emt 0:00:18]} Rg8 {[%emt 0:01:02]} 23. Qd3 {[%emt
0:01:16]} Ne5 {[%emt 0:00:23]} 24. Bxe5 {[%emt 0:00:18]} dxe5 {[%emt 0:00:02]}
25. Rh3 {[%emt 0:00:36]} e4 {[%emt 0:00:19]} 26. Qxe4 {[%emt 0:00:04]} Nxe4 {
[%emt 0:00:16]} 27. Nxe4 {[%emt 0:00:06]} Bd4+ {[%emt 0:00:27]} 28. Kh1 {[%emt
0:00:03]} Qxd5 {[%emt 0:00:23]} 29. Bd3 {[%emt 0:00:01]} Rg7 {[%emt 0:00:31]}
30. Ng3 {[%emt 0:00:20]} Bf6 {[%emt 0:00:23]} 31. Be4 {[%emt 0:00:10]} Qb5 {
[%emt 0:00:06]} 32. Rd1 {[%emt 0:00:12]} Rag8 {[%emt 0:00:12]} 33. Nf5 {[%emt
0:00:17]} Qe2 {[%emt 0:00:07]} 34. Bf3 {[%emt 0:00:07]} Qe6 {[%emt 0:00:20]}
35. Nxg7 {[%emt 0:00:11]} Bxg7 {[%emt 0:00:20]} 36. Bd5 {[%emt 0:00:16]} Qe2 {
[%emt 0:00:06]} 37. Bf3 {[%emt 0:00:03]} Qxb2 {[%emt 0:00:14]} 38. Be4 {[%emt
0:00:03]} h6 {[%emt 0:00:05]} 39. Rb3 {[%emt 0:00:07]} Qe2 {[%emt 0:00:10]} 40.
Bf3 {[%emt 0:00:01]} Qf2 {[%emt 0:00:11]} 41. Rxb7 {[%emt 0:00:03]} Bd4 {[%emt
0:00:11]} 42. Rxe7 {[%emt 0:00:06]} Qh4 {[%emt 0:00:07]} 43. Re4 {[%emt 0:00:
01]} Qf2 {[%emt 0:00:21]} 44. Rexd4 {[%emt 0:00:03]} Qxa2 {[%emt 0:00:05]} 45.
Rd7 {[%emt 0:00:01]} a5 {[%emt 0:00:14]} 46. h3 {[%emt 0:00:04]} a4 {[%emt 0:
00:19]} 47. Bd5 {[%emt 0:00:02]} Qc2 {[%emt 0:00:10]} 48. Bxg8 {[%emt 0:00:03]}
Kxg8 {[%emt 0:00:01]} 49. Re1 {[%emt 0:00:06]} Kf8 {[%emt 0:00:14]} 50. Ra7 {
[%emt 0:00:17]} Qf2 {[%emt 0:00:12]} 51. Rae7 {[%emt 0:00:49]} a3 {[%emt 0:00:
06]} 52. Re8+ {[%emt 0:00:03]} Kf7 {[%emt 0:00:02]} 53. R1e7+ {[%emt 0:00:01]}
Kg6 {[%emt 0:00:08]} 54. Rg8+ {[%emt 0:00:07]} 1-0

[Event "16th EWICC 2015"]
[Site "Kutaisi"]
[Date "2015.06.02"]
[Round "7"]
[White "Gevorgyan, Maria"]
[Black "Galliamova, Alisa"]
[Result "0-1"]
[ECO "B24"]
[WhiteElo "2190"]
[BlackElo "2478"]
[Annotator "Robot 11"]
[PlyCount "68"]
[EventDate "2015.??.??"]
[EventCountry "GEO"]
[TimeControl "900+10"]

1. e4 {[%emt 0:00:02]} c5 {[%emt 0:00:02]} 2. Nc3 {[%emt 0:00:01]} Nc6 {[%emt
0:00:01]} 3. Bb5 {[%emt 0:00:02]} g6 {[%emt 0:00:41]} 4. Bxc6 {[%emt 0:00:08]}
bxc6 {[%emt 0:00:08]} 5. d3 {[%emt 0:00:01]} Bg7 {[%emt 0:00:07]} 6. Be3 {
[%emt 0:00:03]} d6 {[%emt 0:00:11]} 7. Qd2 {[%emt 0:00:19]} Rb8 {[%emt 0:00:07]
} 8. Rb1 {[%emt 0:00:37]} e5 {[%emt 0:01:08]} 9. Nge2 {[%emt 0:00:06]} f5 {
[%emt 0:00:40]} 10. f4 {[%emt 0:00:23]} Qh4+ {[%emt 0:01:27]} 11. Bf2 {[%emt 0:
01:03]} Qe7 {[%emt 0:00:09]} 12. O-O {[%emt 0:00:21]} fxe4 {[%emt 0:02:30]} 13.
dxe4 {[%emt 0:02:14]} Ba6 {[%emt 0:00:40]} 14. Rfd1 {[%emt 0:01:12]} Rd8 {
[%emt 0:00:10]} 15. f5 {[%emt 0:00:22]} gxf5 {[%emt 0:01:24]} 16. exf5 {[%emt
0:00:01]} Nf6 {[%emt 0:00:08]} 17. Ng3 {[%emt 0:00:22]} d5 {[%emt 0:00:38]} 18.
Na4 {[%emt 0:01:13]} d4 {[%emt 0:00:05]} 19. Re1 {[%emt 0:02:03]} O-O {[%emt 0:
00:11]} 20. Qg5 {[%emt 0:00:49]} h6 {[%emt 0:00:44]} 21. Qh4 {[%emt 0:00:30]}
Rde8 {[%emt 0:00:29]} 22. Ne4 {[%emt 0:01:18]} Nxe4 {[%emt 0:01:07]} 23. Qxe4 {
[%emt 0:00:02]} Bc4 {[%emt 0:00:27]} 24. Qxc6 {[%emt 0:00:45]} Rc8 {[%emt 0:01:
24]} 25. Qe4 {[%emt 0:00:04]} Qd7 {[%emt 0:00:24]} 26. f6 {[%emt 0:03:02]} Rxf6
{[%emt 0:00:15]} 27. b3 {[%emt 0:01:10]} Bd5 {[%emt 0:00:09]} 28. Qh4 {[%emt 0:
00:04]} e4 {[%emt 0:01:56]} 29. Rbd1 {[%emt 0:00:28]} e3 {[%emt 0:00:14]} 30.
Bxe3 {[%emt 0:00:31]} dxe3 {[%emt 0:00:04]} 31. c4 {[%emt 0:00:01]} Qf5 {[%emt
0:00:10]} 32. Rf1 {[%emt 0:00:21]} e2 {[%emt 0:00:06]} 33. Qxf6 {[%emt 0:00:27]
} exf1=Q+ {[%emt 0:00:27]} 34. Rxf1 {[%emt 0:00:02]} Qxf6 {[%emt 0:00:04]} 0-1

[Event "16th EWICC 2015"]
[Site "Kutaisi"]
[Date "2015.06.02"]
[Round "7"]
[White "Giorgadze, Elene"]
[Black "Donghvani, Nia"]
[Result "0-1"]
[ECO "B76"]
[WhiteElo "1185"]
[BlackElo "1444"]
[Annotator "Robot 11"]
[PlyCount "52"]
[EventDate "2015.??.??"]
[EventCountry "GEO"]
[TimeControl "900+10"]

1. e4 {[%emt 0:00:01]} c5 {[%emt 0:00:01]} 2. Nf3 {[%emt 0:00:03]} d6 {[%emt 0:
00:01]} 3. d4 {[%emt 0:00:02]} cxd4 {[%emt 0:00:02]} 4. Nxd4 {[%emt 0:00:02]}
Nf6 {[%emt 0:00:00]} 5. Nc3 {[%emt 0:00:02]} g6 {[%emt 0:00:02]} 6. Be3 {[%emt
0:00:05]} Bg7 {[%emt 0:00:01]} 7. f3 {[%emt 0:00:17]} O-O {[%emt 0:00:04]} 8.
Qd2 {[%emt 0:00:03]} Nc6 {[%emt 0:00:01]} 9. O-O-O {[%emt 0:00:11]} d5 {[%emt
0:00:07]} 10. Nxc6 {[%emt 0:00:45]} bxc6 {[%emt 0:00:04]} 11. exd5 {[%emt 0:00:
13]} Nxd5 {[%emt 0:00:02]} 12. Nxd5 {[%emt 0:00:13]} cxd5 {[%emt 0:00:03]} 13.
Qxd5 {[%emt 0:00:41]} Qc7 {[%emt 0:00:04]} 14. Qxa8 {[%emt 0:02:20]} Bf5 {
[%emt 0:00:04]} 15. Qxf8+ {[%emt 0:01:21]} Kxf8 {[%emt 0:00:02]} 16. Rd2 {
[%emt 0:00:27]} Qb8 {[%emt 0:00:03]} 17. c3 {[%emt 0:02:35]} Bxc3 {[%emt 0:01:
51]} 18. Rf2 {[%emt 0:06:00]} Bg7 {[%emt 0:04:49]} 19. g3 {[%emt 0:01:16]} Qe5
{[%emt 0:03:49]} 20. Be2 {[%emt 0:01:27]} Qxe3+ {[%emt 0:00:02]} 21. Kd1 {
[%emt 0:00:11]} Qxf2 {[%emt 0:00:28]} 22. Rf1 {[%emt 0:00:13]} Qd4+ {[%emt 0:
00:06]} 23. Ke1 {[%emt 0:00:05]} Qe3 {[%emt 0:00:19]} 24. Rh1 {[%emt 0:00:04]}
Bd3 {[%emt 0:00:02]} 25. Kf1 {[%emt 0:00:13]} Qxe2+ {[%emt 0:00:02]} 26. Kg1 {
[%emt 0:00:02]} Bd4# {[%emt 0:00:02]} 0-1

[Event "16th EWICC 2015"]
[Site "Kutaisi"]
[Date "2015.06.02"]
[Round "7"]
[White "Gognadze, Tsira"]
[Black "Choladze, Tea"]
[Result "0-1"]
[ECO "B76"]
[WhiteElo "1144"]
[BlackElo "1755"]
[Annotator "Robot 11"]
[PlyCount "50"]
[EventDate "2015.??.??"]
[EventCountry "GEO"]
[TimeControl "900+10"]

1. e4 {[%emt 0:00:01]} c5 {[%emt 0:00:01]} 2. Nf3 {[%emt 0:00:00]} d6 {[%emt 0:
00:11]} 3. d4 {[%emt 0:00:01]} cxd4 {[%emt 0:00:02]} 4. Nxd4 {[%emt 0:00:01]}
Nf6 {[%emt 0:00:02]} 5. Nc3 {[%emt 0:00:01]} g6 {[%emt 0:00:01]} 6. f3 {[%emt
0:00:01]} Bg7 {[%emt 0:00:00]} 7. Be3 {[%emt 0:00:01]} O-O {[%emt 0:00:02]} 8.
Qd2 {[%emt 0:00:00]} Nc6 {[%emt 0:00:03]} 9. Nb3 {[%emt 0:00:03]} Be6 {[%emt 0:
00:12]} 10. O-O-O {[%emt 0:00:06]} a5 {[%emt 0:00:03]} 11. Nd5 {[%emt 0:00:31]}
Bxd5 {[%emt 0:00:25]} 12. exd5 {[%emt 0:00:03]} Nb4 {[%emt 0:00:03]} 13. c4 {
[%emt 0:00:28]} Nxa2+ {[%emt 0:00:14]} 14. Kb1 {[%emt 0:00:08]} Nb4 {[%emt 0:
00:07]} 15. g4 {[%emt 0:00:19]} Qd7 {[%emt 0:00:03]} 16. h4 {[%emt 0:00:46]}
Qa4 {[%emt 0:00:22]} 17. Nc1 {[%emt 0:00:02]} Rfc8 {[%emt 0:00:50]} 18. b3 {
[%emt 0:00:10]} Qd7 {[%emt 0:01:06]} 19. Nd3 {[%emt 0:00:49]} Nbxd5 {[%emt 0:
01:13]} 20. g5 {[%emt 0:03:55]} Nxe3 {[%emt 0:00:31]} 21. gxf6 {[%emt 0:00:22]}
Nxf1 {[%emt 0:00:16]} 22. Qf2 {[%emt 0:00:32]} Bxf6 {[%emt 0:00:21]} 23. Rdxf1
{[%emt 0:00:36]} a4 {[%emt 0:00:07]} 24. Rfg1 {[%emt 0:00:17]} axb3 25. Qe3 {
[%emt 0:00:14]} Ra1# {[%emt 0:00:15]} 0-1